bitfinex/quotes_BTCUSD_20250108
["timestamp","ask_amount","ask_price","bid_price","bid_amount"]
[1736346382073,0.3274,95479.0,95478.0,0.25492453]
[1736346383311,0.4044,95480.0,95479.0,0.35947]
[1736346383506,0.4044,95480.0,95479.0,0.45947]
[1736346383716,0.4044,95480.0,95479.0,0.46439301]
[1736346383945,0.40434449,95480.0,95479.0,0.46439301]
[1736346384752,0.40434449,95480.0,95479.0,0.25492301]
[1736346384988,0.50864425,95480.0,95479.0,0.00492301]
[1736346385201,0.50864425,95480.0,95478.0,0.1]
[1736346385416,0.10534742,95479.0,95478.0,0.1]
[1736346387261,0.10429976,95479.0,95478.0,0.1]
[1736346387465,0.10529976,95479.0,95478.0,0.1]
[1736346388060,0.31476976,95479.0,95478.0,0.1]
[1736346389434,0.43269976,95479.0,95478.0,0.1]
[1736346392637,0.209472,95478.0,95458.0,0.209514]
[1736346392959,0.4534,95469.0,95468.0,0.1]
[1736346393167,0.50996,95469.0,95468.0,0.1]
[1736346394244,0.51011241,95469.0,95468.0,0.1]
[1736346395626,0.51011241,95469.0,95468.0,0.104]
[1736346396552,0.45342636,95469.0,95468.0,0.105]
[1736346396821,0.51002636,95469.0,95468.0,0.105]
[1736346397392,0.51002636,95469.0,95468.0,0.1099397]
[1736346397755,0.50997085,95469.0,95468.0,0.1099397]
[1736346400077,0.45337085,95469.0,95468.0,0.1099397]
[1736346400285,0.40417085,95469.0,95468.0,0.1099397]
[1736346401461,0.07695241,95469.0,95468.0,0.11158626]
[1736346402502,0.28644441,95469.0,95468.0,0.11158626]
[1736346402722,0.07695241,95469.0,95468.0,0.11158626]
[1736346403772,0.28644441,95469.0,95468.0,0.11158626]
[1736346404367,0.28644441,95469.0,95468.0,0.11058626]
[1736346404571,0.07695241,95469.0,95468.0,0.10658626]
[1736346404754,0.07795241,95469.0,95468.0,0.10758626]
[1736346407721,0.07795241,95469.0,95468.0,0.1059397]
[1736346409901,0.07795241,95469.0,95468.0,0.0059397]
[1736346409902,0.39174417,95469.0,95468.0,0.0059397]
[1736346410259,0.43844417,95469.0,95468.0,0.001]
[1736346410441,0.50323689,95469.0,95468.0,0.001]
[1736346410647,0.43844417,95469.0,95468.0,0.001]
[1736346411280,0.43744417,95469.0,95468.0,0.001]
[1736346413068,0.4477078,95469.0,95468.0,0.001]
[1736346413203,0.4507078,95469.0,95456.0,0.1]
[1736346413407,0.31484142,95468.0,95456.0,0.1]
[1736346413610,0.52433542,95468.0,95456.0,0.1]
[1736346413838,0.52328776,95468.0,95456.0,0.1]
[1736346414034,0.209498,95466.0,95456.0,0.1]
[1736346414281,0.31379776,95466.0,95456.0,0.1]
[1736346416844,0.31679776,95466.0,95456.0,0.1]
[1736346417156,0.31779776,95466.0,95456.0,0.1]
[1736346420735,0.39299776,95466.0,95454.0,0.1001704]
[1736346420934,0.39299776,95466.0,95454.0,0.0001704]
[1736346421505,0.39299776,95466.0,95456.0,0.1]
[1736346422264,0.39299776,95466.0,95454.0,0.0001704]
[1736346423247,0.47386047,95466.0,95454.0,0.0001704]
[1736346423447,0.44119776,95466.0,95454.0,0.0001704]
[1736346424649,0.209522,95455.0,95454.0,0.0001704]
[1736346424851,0.49208176,95455.0,95454.0,0.0001704]
[1736346426525,0.49308176,95455.0,95454.0,0.0001704]
[1736346427112,0.49408176,95455.0,95454.0,0.0001704]
[1736346428269,0.43752176,95455.0,95454.0,0.0001704]
[1736346428477,0.49408176,95455.0,95454.0,0.0001704]
[1736346428686,0.002,95455.0,95454.0,0.1001704]
[1736346428899,0.002,95455.0,95454.0,0.2501704]
[1736346429095,0.002,95455.0,95454.0,0.25513949]
[1736346429550,0.001,95455.0,95454.0,0.25513949]
[1736346429969,0.002,95455.0,95454.0,0.25513949]
[1736346430779,0.001,95455.0,95454.0,0.25513949]
[1736346431399,0.00015241,95469.0,95468.0,0.559494]
[1736346431607,0.00015241,95469.0,95468.0,0.659494]
[1736346432007,0.00015241,95469.0,95468.0,0.66444185]
[1736346433195,0.00015241,95469.0,95468.0,0.68554505]
[1736346433368,0.00015241,95469.0,95468.0,0.69154505]
[1736346434635,0.2094912,95508.0,95468.0,0.69154505]
[1736346434636,8.52e-05,95508.0,95507.0,0.1]
[1736346434810,8.52e-05,95508.0,95507.0,0.309408]
[1736346435020,0.10453757,95508.0,95507.0,0.1]
[1736346435267,0.10453757,95508.0,95507.0,0.00488872]
[1736346435438,0.16105757,95508.0,95507.0,0.10488872]
[1736346435695,0.16105757,95508.0,95507.0,0.1]
[1736346435928,0.16105757,95508.0,95507.0,0.10488872]
[1736346436124,0.16305757,95508.0,95507.0,0.10488872]
[1736346436462,0.16105757,95508.0,95507.0,0.10488872]
[1736346436861,0.23665757,95508.0,95507.0,0.10488872]
[1736346440688,0.23665757,95508.0,95507.0,0.11188872]
[1736346443635,0.23665757,95508.0,95507.0,0.10488872]
[1736346444041,0.16105757,95508.0,95507.0,0.10788872]
[1736346444617,0.10453757,95508.0,95507.0,0.10788872]
[1736346444784,0.10453757,95508.0,95507.0,0.31729672]
[1736346444996,0.00023781,95508.0,95507.0,0.46729672]
[1736346451212,0.00023781,95508.0,95507.0,0.47329672]
[1736346451405,0.00023781,95508.0,95507.0,0.47529672]
[1736346452050,0.00023781,95508.0,95507.0,0.46629672]
[1736346452895,0.00023781,95508.0,95507.0,0.47329672]
[1736346453307,0.00023781,95508.0,95507.0,0.47629672]
[1736346454910,0.00023781,95508.0,95507.0,0.26688872]
[1736346455739,0.00023781,95508.0,95507.0,0.16688872]
[1736346456979,0.00023781,95508.0,95507.0,0.16388872]
[1736346457128,0.00023781,95508.0,95507.0,0.26488872]
[1736346457328,0.00023781,95508.0,95507.0,0.25588872]
[1736346457734,0.00023781,95508.0,95507.0,0.26388872]
[1736346457932,0.00023781,95508.0,95507.0,0.26488872]
[1736346458362,0.00023781,95508.0,95507.0,0.25588872]
[1736346458651,0.00023781,95508.0,95507.0,0.26288872]
[1736346459057,0.00023781,95508.0,95507.0,0.25588872]
[1736346459272,0.00023781,95508.0,95507.0,0.25488872]
[1736346459637,0.00023781,95508.0,95507.0,0.25688872]
[1736346460256,0.00023781,95508.0,95507.0,0.25488872]
[1736346460463,0.00023781,95508.0,95507.0,0.38198872]
[1736346460667,0.00023781,95508.0,95507.0,0.58828848]
[1736346460867,8.52e-05,95519.0,95507.0,0.58828848]
[1736346460868,2e-07,95519.0,95518.0,0.659384]
[1736346461070,2e-07,95519.0,95518.0,0.76368376]
[1736346461340,2e-07,95519.0,95518.0,0.76855581]
[1736346461541,2e-07,95519.0,95518.0,0.79155581]
[1736346461750,2e-07,95519.0,95518.0,0.81897297]
[1736346462590,2e-07,95519.0,95518.0,0.82917855]
[1736346462793,8.52e-05,95543.0,95542.0,0.459332]
[1736346462933,0.00023775,95543.0,95542.0,0.459332]
[1736346463144,0.00023775,95543.0,95542.0,0.46416769]
[1736346464454,0.00023775,95543.0,95542.0,0.47516769]
[1736346466455,0.00023775,95543.0,95542.0,0.69956745]
[1736346466807,0.00023775,95543.0,95542.0,0.79956745]
[1736346467046,0.00023775,95543.0,95542.0,0.80970037]
[1736346467251,0.00023775,95543.0,95542.0,0.80770037]
[1736346467492,0.00023775,95543.0,95542.0,0.83511753]
[1736346467702,0.00023775,95543.0,95542.0,0.82911753]
[1736346468090,0.00023775,95543.0,95542.0,0.83811753]
[1736346468415,7.5e-07,95543.0,95542.0,0.86111753]
[1736346469735,7.5e-07,95543.0,95542.0,0.81070037]
[1736346469950,7.5e-07,95543.0,95542.0,0.80170037]
[1736346470172,7.5e-07,95543.0,95542.0,0.79870037]
[1736346470382,7.5e-07,95543.0,95542.0,0.80570037]
[1736346471363,7.5e-07,95543.0,95542.0,0.81470037]
[1736346471559,7.5e-07,95543.0,95542.0,0.80570037]
[1736346471966,7.5e-07,95543.0,95542.0,0.81470037]
[1736346472735,7.5e-07,95543.0,95542.0,0.79460037]
[1736346473885,7.5e-07,95543.0,95542.0,0.59030061]
[1736346474044,7.5e-07,95543.0,95542.0,0.48330061]
[1736346474243,7.5e-07,95543.0,95542.0,0.58330061]
[1736346474647,7.5e-07,95543.0,95542.0,0.48830061]
[1736346475228,7.5e-07,95543.0,95542.0,0.48330061]
[1736346475629,7.5e-07,95543.0,95542.0,0.47730061]
[1736346476151,7.5e-07,95543.0,95542.0,0.57730061]
[1736346476740,7.5e-07,95543.0,95542.0,0.79060037]
[1736346477066,7.5e-07,95543.0,95542.0,0.78760037]
[1736346477556,7.5e-07,95543.0,95542.0,0.79060037]
[1736346477953,7.5e-07,95543.0,95542.0,0.78760037]
[1736346478164,7.5e-07,95543.0,95542.0,0.77860037]
[1736346478379,7.5e-07,95543.0,95542.0,0.78360037]
[1736346479841,7.5e-07,95543.0,95542.0,0.57930061]
[1736346480428,7.5e-07,95543.0,95542.0,0.79260037]
[1736346480779,7.5e-07,95543.0,95542.0,0.78360037]
[1736346481006,7.5e-07,95543.0,95542.0,0.79260037]
[1736346481553,7.5e-07,95543.0,95542.0,0.77860037]
[1736346481725,7.5e-07,95543.0,95542.0,0.79360037]
[1736346482263,7.5e-07,95543.0,95542.0,0.80601753]
[1736346482469,7.5e-07,95543.0,95542.0,0.82901753]
[1736346482672,7.5e-07,95543.0,95542.0,0.88281753]
[1736346483246,7.5e-07,95543.0,95542.0,1.29556952]
[1736346483451,7.5e-07,95543.0,95542.0,1.30456952]
[1736346483664,7.5e-07,95543.0,95542.0,1.3201935]
[1736346484094,7.5e-07,95543.0,95542.0,0.92244151]
[1736346484532,7.5e-07,95543.0,95542.0,0.91644151]
[1736346484934,7.5e-07,95543.0,95542.0,0.89881753]
[1736346486298,8.52e-05,95554.0,95542.0,0.89881753]
[1736346486299,8.52e-05,95554.0,95553.0,0.2]
[1736346486544,2e-07,95554.0,95553.0,0.787653]
[1736346486782,2e-07,95554.0,95553.0,0.87046392]
[1736346487045,2e-07,95554.0,95553.0,0.87538432]
[1736346487290,2e-07,95554.0,95553.0,1.15482946]
[1736346487560,2e-07,95554.0,95553.0,1.15982946]
[1736346487807,2e-07,95554.0,95553.0,1.1324123]
[1736346488017,2e-07,95554.0,95553.0,1.1364123]
[1736346488490,2e-07,95554.0,95553.0,1.16405532]
[1736346488686,2e-07,95554.0,95553.0,0.88461018]
[1736346488824,2e-07,95554.0,95553.0,0.87761018]
[1736346489061,2e-07,95554.0,95553.0,0.87561018]
[1736346491023,2e-07,95554.0,95553.0,0.88608483]
[1736346491261,2e-07,95554.0,95553.0,0.87908483]
[1736346491487,2e-07,95554.0,95553.0,0.89508483]
[1736346491903,2e-07,95554.0,95553.0,0.87908483]
[1736346492326,1e-06,95565.0,95564.0,0.3]
[1736346492554,0.0462,95591.0,95572.0,0.582266]
[1736346492824,0.0005784,95573.0,95572.0,0.78656576]
[1736346493093,0.0005784,95573.0,95572.0,0.7914574]
[1736346494723,0.0005784,95573.0,95572.0,0.82151212]
[1736346495063,0.0005784,95573.0,95572.0,0.81251212]
[1736346495303,0.0005784,95573.0,95572.0,0.82151212]
[1736346495510,0.0005784,95573.0,95572.0,0.79851212]
[1736346495687,0.0005784,95573.0,95572.0,0.79967117]
[1736346495886,0.0005784,95573.0,95572.0,0.81467117]
[1736346497203,0.0005784,95573.0,95572.0,0.80867117]
[1736346497663,0.0005784,95573.0,95572.0,0.80567117]
[1736346498035,0.0005784,95573.0,95572.0,0.79967117]
[1736346498237,0.0005784,95573.0,95572.0,0.80867117]
[1736346498435,0.0005784,95573.0,95572.0,0.81367117]
[1736346500381,0.0772784,95573.0,95572.0,0.12905069]
[1736346500612,0.1218,95572.0,95562.0,0.27930972]
[1736346500786,0.00830624,95573.0,95562.0,0.27930972]
[1736346500787,0.209272,95569.0,95562.0,0.27930972]
[1736346501001,0.0767,95567.0,95562.0,0.27930972]
[1736346501141,0.00104766,95566.0,95565.0,0.1]
[1736346501348,0.285979,95566.0,95565.0,0.1]
[1736346501551,0.285979,95566.0,95565.0,0.11063296]
[1736346502065,0.285979,95566.0,95565.0,0.01063296]
[1736346502271,0.0804,95563.0,95538.0,0.23041437]
[1736346502433,0.289686,95563.0,95561.0,0.1]
[1736346502641,0.0817,95562.0,95561.0,0.1]
[1736346503472,0.0817,95562.0,95561.0,0.25]
[1736346505482,0.0817,95562.0,95561.0,0.255]
[1736346508870,0.0817,95562.0,95561.0,0.26513144]
[1736346510810,0.0817,95562.0,95561.0,0.255]
[1736346512758,0.1381,95562.0,95561.0,0.255]
[1736346514003,0.1381,95562.0,95561.0,0.256]
[1736346514229,0.1381,95562.0,95561.0,0.251]
[1736346514572,0.1381,95562.0,95561.0,0.256]
[1736346516645,0.1381,95562.0,95561.0,0.26664911]
[1736346520396,0.1381,95562.0,95561.0,0.16664911]
[1736346520808,0.28874742,95562.0,95561.0,0.01664911]
[1736346520983,0.28769976,95562.0,95561.0,0.01664911]
[1736346521183,0.28769976,95562.0,95561.0,0.006]
[1736346522394,0.28769976,95562.0,95561.0,0.001]
[1736346522593,0.29069976,95562.0,95561.0,0.001]
[1736346522797,0.20929,95561.0,95555.0,0.1]
[1736346523071,0.0765,95559.0,95555.0,0.1]
[1736346523274,0.00104766,95558.0,95555.0,0.1]
[1736346523585,0.0828,95556.0,95555.0,0.1]
[1736346523792,0.18709976,95556.0,95555.0,0.1]
[1736346524907,0.18809976,95556.0,95555.0,0.1]
[1736346525914,0.18809976,95556.0,95555.0,0.11067334]
[1736346528783,0.18809976,95556.0,95555.0,0.01067334]
[1736346528992,0.18809976,95556.0,95555.0,0.11067334]
[1736346529215,0.18809976,95556.0,95555.0,0.1]
[1736346529421,0.18809976,95556.0,95555.0,0.11067334]
[1736346529823,0.18809976,95556.0,95555.0,0.10993152]
[1736346531336,0.0838,95556.0,95555.0,0.10993152]
[1736346531742,0.0838,95556.0,95555.0,0.01067334]
[1736346533106,0.1402,95556.0,95555.0,0.10993152]
[1736346533804,0.1392,95556.0,95555.0,0.10993152]
[1736346535426,0.0828,95556.0,95555.0,0.10993152]
[1736346535797,0.0828,95556.0,95555.0,0.11193152]
[1736346536200,0.0828,95556.0,95555.0,0.10993152]
[1736346536640,0.0828,95556.0,95555.0,0.11293152]
[1736346538923,0.0828,95556.0,95555.0,0.10993152]
[1736346540290,0.0828,95556.0,95555.0,0.11293152]
[1736346541406,0.0564,95560.0,95556.0,0.15]
[1736346541610,0.0453,95562.0,95559.0,0.09925818]
[1736346542023,0.1017,95562.0,95561.0,0.09925818]
[1736346542368,0.1017,95562.0,95561.0,0.11032613]
[1736346542773,0.0453,95562.0,95561.0,0.11032613]
[1736346544673,0.0463,95562.0,95561.0,0.11032613]
[1736346545013,0.0463,95562.0,95561.0,0.11132613]
[1736346546625,0.0463,95562.0,95561.0,0.01206795]
[1736346547056,0.26465726,95562.0,95561.0,0.01206795]
[1736346547232,0.22589976,95562.0,95561.0,0.01206795]
[1736346547428,0.22589976,95562.0,95561.0,0.001]
[1736346547995,0.55329976,95562.0,95561.0,0.001]
[1736346553219,0.209318,95549.0,95543.0,0.09925818]
[1736346553556,0.209325,95545.0,95544.0,0.0111366]
[1736346553770,0.313285,95545.0,95539.0,0.09925818]
[1736346553970,0.313285,95545.0,95534.0,0.15]
[1736346553971,0.10396,95545.0,95543.0,0.09925818]
[1736346554234,0.313286,95545.0,95544.0,0.0111366]
[1736346554472,0.10396,95545.0,95544.0,0.0111366]
[1736346554676,0.10396,95545.0,95543.0,0.09925818]
[1736346555072,0.10396,95545.0,95544.0,0.0111366]
[1736346555511,0.10396,95545.0,95543.0,0.09925818]
[1736346556039,0.10396,95545.0,95544.0,0.0111366]
[1736346556541,0.09846,95545.0,95544.0,0.003]
[1736346556805,0.3274,95546.0,95545.0,0.09925818]
[1736346557044,0.3274,95546.0,95545.0,0.30858318]
[1736346557328,0.4035,95547.0,95546.0,0.09925818]
[1736346557793,0.4035,95547.0,95546.0,0.11044456]
[1736346558548,0.083,95557.0,95556.0,0.209301]
[1736346558801,0.083,95557.0,95556.0,0.09925818]
[1736346559039,0.083,95557.0,95556.0,0.11040418]
[1736346559838,0.085,95557.0,95556.0,0.11040418]
[1736346560267,0.085,95557.0,95556.0,0.11540418]
[1736346560486,0.085,95557.0,95556.0,0.11040418]
[1736346561144,0.083,95557.0,95556.0,0.11040418]
[1736346561351,0.083,95557.0,95556.0,0.11340418]
[1736346561588,0.05636,95563.0,95562.0,0.30854618]
[1736346561994,0.05636,95563.0,95562.0,0.31966795]
[1736346563086,0.05736,95563.0,95562.0,0.31966795]
[1736346563350,0.05736,95563.0,95562.0,0.11037995]
[1736346564050,0.05736,95563.0,95562.0,0.11137995]
[1736346564257,0.16270742,95563.0,95562.0,0.01212177]
[1736346564508,0.16270742,95563.0,95562.0,0.01112177]
[1736346564736,0.209288,95562.0,95550.0,0.209314]
[1736346564990,0.10534742,95561.0,95550.0,0.209314]
[1736346565237,0.209292,95560.0,95551.0,0.01116619]
[1736346565460,0.0769,95557.0,95551.0,0.01116619]
[1736346565755,0.43274742,95556.0,95551.0,0.01116619]
[1736346565975,0.3274,95552.0,95542.0,0.09925818]
[1736346566188,0.18239976,95551.0,95542.0,0.09925818]
[1736346566439,0.18239976,95551.0,95543.0,0.01119849]
[1736346566693,0.18344742,95551.0,95530.0,0.15]
[1736346566931,0.00104766,95550.0,95544.0,0.01119446]
[1736346567169,0.287425,95545.0,95544.0,0.01119446]
[1736346567407,0.287425,95545.0,95527.0,0.09925818]
[1736346567408,0.418678,95539.0,95527.0,0.09925818]
[1736346567644,0.3274,95532.0,95525.0,0.09925818]
[1736346567879,0.0488,95531.0,95528.0,0.01125909]
[1736346568126,0.64105776,95530.0,95513.0,0.23443318]
[1736346568383,0.0796,95529.0,95521.0,0.09925818]
[1736346568629,0.0796,95529.0,95522.0,0.00032315]
[1736346568822,0.0796,95529.0,95523.0,0.01127929]
[1736346569046,0.0796,95529.0,95527.0,0.001]
[1736346569537,0.31366176,95528.0,95527.0,0.001]
[1736346569746,0.10429976,95528.0,95527.0,0.001]
[1736346570395,0.10429976,95528.0,95527.0,0.01226313]
[1736346570601,0.10429976,95528.0,95527.0,0.001]
[1736346570775,0.10429976,95528.0,95527.0,0.01226313]
[1736346571187,0.10429976,95528.0,95522.0,0.00032315]
[1736346571526,0.10429976,95528.0,95527.0,0.01126313]
[1736346571934,0.10429976,95528.0,95522.0,0.00032315]
[1736346572145,0.10429976,95528.0,95527.0,0.01126313]
[1736346572346,0.10417379,95528.0,95527.0,0.01126313]
[1736346572545,0.10417379,95528.0,95522.0,0.00032315]
[1736346572723,0.10517379,95528.0,95522.0,0.00032315]
[1736346572930,0.10517379,95528.0,95527.0,0.01126313]
[1736346573087,0.10417379,95528.0,95522.0,0.00032315]
[1736346573353,0.209364,95527.0,95523.0,0.01127929]
[1736346573553,0.209364,95527.0,95522.0,0.00032315]
[1736346573791,0.209364,95527.0,95524.0,0.01127525]
[1736346574028,0.209364,95527.0,95522.0,0.00032315]
[1736346574230,0.05636,95526.0,95522.0,0.00032315]
[1736346574401,0.05636,95526.0,95523.0,0.01127929]
[1736346574844,0.05636,95526.0,95522.0,0.00032315]
[1736346575251,0.05636,95526.0,95523.0,0.01127929]
[1736346575613,0.05636,95526.0,95522.0,0.00032315]
[1736346576014,0.05636,95526.0,95523.0,0.01227929]
[1736346576396,0.05636,95526.0,95523.0,0.001]
[1736346576583,0.31471642,95525.0,95523.0,0.001]
[1736346576775,0.31366876,95525.0,95523.0,0.001]
[1736346577484,0.31366876,95525.0,95522.0,0.00032315]
[1736346577851,0.52303776,95525.0,95522.0,0.00032315]
[1736346578249,0.52503776,95525.0,95522.0,0.00032315]
[1736346578471,0.52303776,95525.0,95522.0,0.00032315]
[1736346579005,0.52503776,95525.0,95522.0,0.00032315]
[1736346579408,0.52603776,95525.0,95522.0,0.00032315]
[1736346579850,0.52503776,95525.0,95522.0,0.00032315]
[1736346580051,0.52603776,95525.0,95522.0,0.00032315]
[1736346587598,0.05632,95524.0,95522.0,0.00032315]
[1736346587799,0.209373,95523.0,95522.0,0.00032315]
[1736346589704,0.210373,95523.0,95522.0,0.00032315]
[1736346590998,0.211373,95523.0,95522.0,0.00032315]
[1736346596758,0.37199276,95523.0,95522.0,0.00032315]
[1736346596962,0.45199276,95523.0,95522.0,0.00032315]
[1736346597175,0.49819276,95523.0,95522.0,0.00032315]
[1736346598611,0.49719276,95523.0,95522.0,0.00032315]
[1736346598942,0.49919276,95523.0,95522.0,0.00032315]
[1736346599345,0.49819276,95523.0,95522.0,0.00032315]
[1736346599544,0.52119276,95523.0,95522.0,0.00032315]
[1736346599754,0.52193458,95523.0,95522.0,0.00032315]
[1736346600213,0.52219276,95523.0,95522.0,0.00032315]
[1736346600465,0.85624865,95523.0,95522.0,0.00032315]
[1736346600626,0.85624865,95523.0,95516.0,0.0001704]
[1736346600627,0.61072782,95517.0,95516.0,0.0001704]
[1736346600851,0.74770981,95517.0,95516.0,0.0001704]
[1736346601062,0.65402981,95517.0,95516.0,0.0001704]
[1736346601264,0.65402981,95517.0,95484.0,0.0001706]
[1736346601265,0.10074182,95499.0,95484.0,0.0001706]
[1736346601462,0.1497,95503.0,95484.0,0.0001706]
[1736346601463,0.209456,95485.0,95484.0,0.00032321]
[1736346601664,0.44119758,95485.0,95484.0,0.00032321]
[1736346601867,0.56419758,95485.0,95484.0,0.00032321]
[1736346602077,0.1,95481.0,95480.0,4.1e-07]
[1736346602289,0.023,95467.0,95465.0,0.0001706]
[1736346602489,0.08036766,95466.0,95465.0,0.0001706]
[1736346602695,0.62230724,95466.0,95465.0,6e-07]
[1736346602897,0.40154182,95460.0,95454.0,0.0001704]
[1736346603064,0.61105282,95460.0,95459.0,0.0006794]
[1736346603263,0.61105282,95460.0,95454.0,0.0001704]
[1736346603264,0.25234182,95455.0,95454.0,0.0001704]
[1736346603484,0.47491622,95455.0,95454.0,0.0001704]
[1736346603716,0.47491622,95455.0,95429.0,0.0001704]
[1736346603717,0.31027682,95449.0,95429.0,0.0001704]
[1736346603978,0.45787682,95449.0,95429.0,0.0001704]
[1736346604177,0.17924182,95447.0,95429.0,0.0001704]
[1736346604393,0.123,95432.0,95429.0,0.0001704]
[1736346604623,0.54398042,95432.0,95429.0,0.0001704]
[1736346604844,0.54293276,95432.0,95429.0,0.0001704]
[1736346605532,0.123,95431.0,95429.0,0.0001704]
[1736346605731,0.22834742,95431.0,95429.0,0.0001704]
[1736346605869,0.22729976,95431.0,95429.0,0.0001704]
[1736346606092,0.12729976,95431.0,95429.0,0.0001704]
[1736346606279,0.16065976,95431.0,95429.0,0.0001704]
[1736346606509,0.10429976,95431.0,95429.0,0.0001704]
[1736346606715,0.16170742,95431.0,95429.0,0.0001704]
[1736346606923,0.33254924,95431.0,95429.0,0.0001704]
[1736346607133,0.33150158,95431.0,95429.0,0.0001704]
[1736346607588,0.48150158,95431.0,95429.0,0.0001704]
[1736346607818,0.48150158,95431.0,95426.0,0.0001706]
[1736346607819,0.20634182,95428.0,95426.0,0.0001706]
[1736346608053,0.31064158,95428.0,95426.0,0.0001706]
[1736346608276,0.12374182,95427.0,95426.0,0.0001706]
[1736346608504,0.12374182,95427.0,95415.0,0.0001706]
[1736346608505,0.123,95416.0,95415.0,0.0001706]
[1736346608874,0.123,95416.0,95364.0,0.209721]
[1736346608875,0.1,95400.0,95364.0,0.209721]
[1736346609060,0.1,95400.0,95357.0,0.09925818]
[1736346609061,0.209692,95378.0,95357.0,0.09925818]
[1736346609253,0.16065976,95377.0,95361.0,0.09925818]
[1736346609491,0.21074366,95376.0,95347.0,0.209758]
[1736346609691,0.12729976,95373.0,95341.0,0.209771]
[1736346609824,0.12834742,95373.0,95372.0,0.10015241]
[1736346610356,0.16065976,95373.0,95372.0,0.10015241]
[1736346610572,0.16170742,95373.0,95372.0,0.10015241]
[1736346611569,0.16470742,95373.0,95372.0,0.10015241]
[1736346612098,0.38706082,95373.0,95372.0,0.10015241]
[1736346612302,0.28940158,95373.0,95372.0,0.10015241]
[1736346612712,0.13029976,95373.0,95372.0,0.10015241]
[1736346612919,0.28844924,95373.0,95372.0,0.10015241]
[1736346613119,0.19065976,95373.0,95372.0,0.10015241]
[1736346613340,0.13534742,95373.0,95372.0,0.10015241]
[1736346613557,0.16065976,95373.0,95372.0,0.10015241]
[1736346613986,0.16965976,95373.0,95372.0,0.10015241]
[1736346614196,0.16065976,95373.0,95372.0,0.10015241]
[1736346614419,0.01048152,95377.0,95373.0,0.209702]
[1736346614627,0.05636,95385.0,95373.0,0.209702]
[1736346614855,0.05636,95385.0,95373.0,0.24925818]
[1736346615072,0.05636,95385.0,95384.0,0.09925818]
[1736346615721,0.05636,95385.0,95373.0,0.209702]
[1736346615934,0.05636,95385.0,95384.0,0.09925818]
[1736346616150,0.05636,95385.0,95373.0,0.209702]
[1736346616151,0.10429976,95385.0,95374.0,0.09925818]
[1736346616367,0.20968,95383.0,95373.0,0.09925818]
[1736346616598,0.18411737,95384.0,95372.0,0.09965241]
[1736346616599,0.209693,95378.0,95372.0,0.09965241]
[1736346616808,0.209696,95376.0,95372.0,0.09965241]
[1736346617033,0.2097,95374.0,95373.0,0.001]
[1736346617246,0.22804158,95373.0,95372.0,0.09965241]
[1736346617884,0.12729976,95373.0,95372.0,0.09965241]
[1736346618098,0.28544924,95373.0,95372.0,0.09965241]
[1736346618344,0.28440158,95373.0,95372.0,0.09965241]
[1736346618553,0.52708873,95373.0,95372.0,0.07868141]
[1736346619672,0.52708873,95373.0,95324.0,0.00104874]
[1736346619673,0.37947482,95359.0,95342.0,8.54e-05]
[1736346619879,0.71107458,95359.0,95358.0,5.089e-05]
[1736346620515,0.71033276,95359.0,95358.0,5.089e-05]
[1736346620726,0.49369276,95359.0,95358.0,5.089e-05]
[1736346620945,0.51743458,95359.0,95358.0,5.089e-05]
[1736346621158,0.46033276,95359.0,95358.0,5.089e-05]
[1736346621371,0.41639276,95359.0,95358.0,5.089e-05]
[1736346621578,0.37039276,95359.0,95358.0,5.089e-05]
[1736346621786,0.39339276,95359.0,95358.0,5.089e-05]
[1736346621996,0.40239276,95359.0,95358.0,0.00105089]
[1736346622434,0.64413458,95359.0,95358.0,5.089e-05]
[1736346622853,0.54813458,95359.0,95358.0,5.089e-05]
[1736346623266,0.54739276,95359.0,95358.0,5.089e-05]
[1736346623479,0.31403276,95359.0,95358.0,5.089e-05]
[1736346623615,0.38439276,95359.0,95358.0,0.00105089]
[1736346623818,0.40739276,95359.0,95358.0,0.00105089]
[1736346624050,0.31903276,95359.0,95358.0,5.089e-05]
[1736346624258,0.07036,95359.0,95358.0,0.00105089]
[1736346624471,0.005,95359.0,95358.0,0.24930907]
[1736346624879,0.012,95359.0,95358.0,0.2618062]
[1736346625083,0.012,95359.0,95358.0,0.2608062]
[1736346625295,0.32103276,95359.0,95358.0,0.01194713]
[1736346625496,0.32603276,95359.0,95358.0,0.01194713]
[1736346625733,0.11629976,95359.0,95346.0,0.09885907]
[1736346625951,0.0684,95359.0,95358.0,0.09885907]
[1736346626188,0.017,95359.0,95358.0,0.26185482]
[1736346626433,0.017,95359.0,95358.0,0.2608062]
[1736346626607,0.012,95359.0,95358.0,0.01194713]
[1736346626815,0.012,95359.0,95337.0,0.09885907]
[1736346626816,0.16069976,95359.0,95337.0,0.09885907]
[1736346627027,0.31508442,95358.0,95343.0,0.01200796]
[1736346627242,0.209749,95353.0,95343.0,0.01200796]
[1736346627445,0.10429976,95352.0,95343.0,0.01200796]
[1736346627657,0.209735,95358.0,95352.0,0.09885907]
[1736346627861,0.20974,95356.0,95352.0,0.09885907]
[1736346628063,0.209744,95354.0,95353.0,0.0119674]
[1736346628269,0.209746,95353.0,95342.0,0.09909693]
[1736346628473,0.209762,95347.0,95342.0,0.09909693]
[1736346628686,0.10429976,95346.0,95343.0,0.01200796]
[1736346629115,0.209749,95352.0,95343.0,0.01200796]
[1736346629467,0.209749,95352.0,95342.0,0.09909693]
[1736346629468,0.31404876,95352.0,95342.0,0.09909693]
[1736346629666,0.10429976,95352.0,95342.0,0.09909693]
[1736346630106,0.10429976,95352.0,95343.0,0.01200796]
[1736346630221,0.0564,95357.0,95347.0,0.09885907]
[1736346630453,0.001,95352.0,95349.0,0.09885907]
[1736346630700,0.001,95352.0,95351.0,0.09885907]
[1736346631167,0.003,95352.0,95351.0,0.26083458]
[1736346631365,0.10529976,95352.0,95351.0,0.01197551]
[1736346631569,0.209751,95351.0,95342.0,0.00023786]
[1736346631783,0.10429976,95350.0,95349.0,0.001]
[1736346632010,0.10429976,95350.0,95342.0,0.00023786]
[1736346632011,0.209755,95349.0,95342.0,0.00023786]
[1736346632262,0.41952,95347.0,95343.0,0.01200796]
[1736346632475,0.10429976,95346.0,95343.0,0.01200796]
[1736346632705,0.209764,95345.0,95342.0,0.00023786]
[1736346632924,0.10429976,95344.0,95342.0,0.00023786]
[1736346633663,0.209768,95343.0,95342.0,0.00023786]
[1736346633896,0.31406776,95343.0,95342.0,0.00023786]
[1736346635884,0.51042624,95343.0,95342.0,0.00123786]
[1736346636333,0.10114093,95335.0,95304.0,8.54e-05]
[1736346636627,0.00114093,95320.0,95304.0,8.54e-05]
[1736346636811,0.023,95304.0,95297.0,0.0140056]
[1736346637026,0.37055676,95303.0,95297.0,0.0140056]